bitfinex/quotes_ETHUSD_20250428
["timestamp","ask_amount","ask_price","bid_price","bid_amount"]
[1745867781037,22.886,1794.2,1794.0,0.55]
[1745867781445,22.886,1794.2,1794.0,6.12395054]
[1745867781824,22.886,1794.2,1794.0,0.55]
[1745867782131,28.45961447,1794.2,1794.0,0.55]
[1745867782343,22.886,1794.2,1794.0,0.55]
[1745867783240,22.886,1794.2,1794.0,6.12402252]
[1745867784220,22.886,1794.2,1794.0,11.69798894]
[1745867784562,22.886,1794.2,1794.0,6.12396642]
[1745867784763,22.886,1794.2,1794.0,0.55]
[1745867784938,22.886,1794.2,1794.0,6.12413369]
[1745867785444,22.886,1794.2,1794.0,6.12392589]
[1745867787068,22.886,1794.2,1794.1,5.57382531]
[1745867787230,22.886,1794.2,1794.0,6.12392589]
[1745867787429,22.886,1794.2,1794.0,11.69787951]
[1745867787633,22.886,1794.2,1794.0,6.12392589]
[1745867787865,22.886,1794.2,1794.1,5.57382531]
[1745867788065,6.149,1794.2,1794.1,6.79012531]
[1745867788430,6.148,1794.6,1794.5,6.12240867]
[1745867788964,6.148,1794.6,1794.5,0.55]
[1745867789526,11.72027237,1794.6,1794.5,0.55]
[1745867790563,6.148,1794.6,1794.5,0.55]
[1745867790866,11.72027237,1794.6,1794.5,0.55]
[1745867791067,6.148,1794.6,1794.5,0.55]
[1745867791936,11.72027237,1794.6,1794.5,0.55]
[1745867795915,0.05,1794.9,1794.5,1.2163]
[1745867796121,0.05,1794.9,1794.8,6.12165143]
[1745867796325,0.05,1794.9,1794.8,7.95729996]
[1745867797735,1e-08,1794.9,1794.8,10.95729996]
[1745867800719,1e-08,1794.9,1794.8,16.98729996]
[1745867801229,1e-08,1794.9,1794.8,17.28912615]
[1745867802345,1e-08,1794.9,1794.8,16.98729996]
[1745867803011,0.05,1795.9,1795.8,6.11854883]
[1745867805554,0.05,1795.9,1795.8,0.55]
[1745867805724,0.05,1795.9,1795.7,0.55]
[1745867805929,0.05,1795.9,1795.8,6.11854883]
[1745867807237,0.05,1795.9,1795.8,6.78484883]
[1745867807947,0.05,1795.9,1795.8,15.81484883]
[1745867808113,0.05,1795.9,1795.8,18.49764833]
[1745867808690,6.125,1796.4,1795.8,18.49764833]
[1745867808815,7.3176339,1796.8,1796.5,5.56626394]
[1745867809417,0.4161339,1796.8,1796.5,11.13251551]
[1745867809722,0.4161339,1796.8,1796.4,6.11652144]
[1745867809916,0.4161339,1796.8,1796.4,1.59807113]
[1745867809917,5.56586639,1796.7,1796.4,1.59807113]
[1745867810117,5.98171703,1796.8,1796.4,7.16466078]
[1745867810347,5.98163326,1796.8,1796.4,7.16466078]
[1745867811616,5.56582286,1796.7,1796.4,1.59807113]
[1745867811925,5.98163326,1796.8,1796.4,7.16469284]
[1745867812355,11.54735262,1796.8,1796.4,7.16469284]
[1745867812568,5.98163326,1796.8,1796.4,7.16469284]
[1745867812866,11.54734241,1796.8,1796.4,7.16469284]
[1745867813165,5.98163326,1796.8,1796.4,12.73114568]
[1745867813335,5.98163326,1796.8,1796.4,7.16452397]
[1745867813529,6.37545036,1796.7,1796.2,5.56700299]
[1745867813735,5.5662066,1796.6,1796.2,5.56700299]
[1745867813931,5.5662066,1796.6,1796.3,0.55]
[1745867815371,6.37544744,1796.7,1796.3,0.55]
[1745867815542,5.56609903,1796.6,1796.3,0.55]
[1745867815748,5.56623327,1796.6,1796.2,6.11728767]
[1745867815965,5.56623327,1796.6,1796.2,7.35239186]
[1745867816471,5.56732007,1796.2,1795.9,6.6963]
[1745867816639,6.35492639,1796.3,1796.0,0.55]
[1745867817468,0.7878,1796.3,1796.0,6.11792391]
[1745867817671,0.7878,1796.3,1796.0,6.11775201]
[1745867817862,6.3548055,1796.3,1796.0,6.11775201]
[1745867818543,6.3548055,1796.3,1796.0,0.55]
[1745867819768,6.35482565,1796.3,1796.0,0.55]
[1745867819966,0.7878,1796.3,1796.0,6.11775759]
[1745867820174,0.7878,1796.3,1796.0,1.78520638]
[1745867820372,0.7878,1796.3,1796.0,0.55]
[1745867820580,0.7878,1796.3,1796.0,6.11789763]
[1745867820791,0.4161339,1796.8,1796.5,0.55]
[1745867820974,5.98174518,1796.8,1796.5,0.55]
[1745867821947,5.56578811,1796.7,1796.4,0.55]
[1745867822280,0.7825,1796.7,1796.4,6.11666816]
[1745867822672,0.7825,1796.7,1796.5,5.56627663]
[1745867822871,0.4161339,1796.8,1796.5,5.56618696]
[1745867823076,0.4161339,1796.8,1796.4,7.28488884]
[1745867823247,0.4161339,1796.8,1796.5,5.56617726]
[1745867823448,0.4161339,1796.8,1796.7,5.56575944]
[1745867823764,0.4161339,1796.8,1796.7,1.16157594]
[1745867824175,0.4161339,1796.8,1796.7,0.55]
[1745867824551,5.98158358,1796.8,1796.7,0.55]
[1745867824756,5.98158358,1796.8,1796.1,0.6663]
[1745867824757,5.56670887,1796.4,1796.1,0.6663]
[1745867824978,5.56670887,1796.4,1795.9,0.6663]
[1745867824979,5.56774764,1796.1,1795.9,0.6663]
[1745867825286,5.56731718,1796.2,1795.8,11.59825208]
[1745867825584,5.56731718,1796.2,1795.9,0.55]
[1745867825883,5.56712326,1796.3,1795.9,5.56822461]
[1745867826083,6.9015,1796.4,1795.7,0.6663]
[1745867826262,5.56762795,1796.1,1795.7,0.6663]
[1745867826461,6.37952795,1796.1,1795.7,11.80358267]
[1745867826665,0.8119,1796.1,1795.7,7.4152791]
[1745867826874,0.8119,1796.1,1795.9,0.55]
[1745867827250,6.37955244,1796.1,1795.7,7.41546878]
[1745867827471,0.8119,1796.1,1795.9,0.55]
[1745867829469,6.37961828,1796.1,1795.8,0.55]
[1745867829790,6.37961828,1796.1,1795.8,1.27990267]
[1745867830294,0.8119,1796.1,1795.8,6.84844469]
[1745867830498,0.8119,1796.1,1795.8,6.84825893]
[1745867831272,6.3796844,1796.1,1795.8,1.27990267]
[1745867831480,0.8119,1796.1,1795.5,0.6663]
[1745867831784,5.56979444,1795.4,1795.2,6.03]
[1745867831962,5.56979444,1795.4,1795.1,0.6663]
[1745867832165,0.781,1795.5,1794.9,12.26756614]
[1745867832365,0.781,1795.5,1795.0,1.22675661]
[1745867832675,5.57057557,1795.2,1794.9,6.03]
[1745867832871,6.34647557,1795.2,1794.9,6.03]
[1745867833086,6.34647557,1795.2,1794.7,6.23804963]
[1745867833403,6.34647557,1795.2,1794.9,0.55]
[1745867833562,0.7759,1795.2,1794.9,0.55]
[1745867833767,0.7759,1795.2,1794.9,5.57132316]
[1745867834196,0.7759,1795.2,1794.8,6.12143917]
[1745867834364,0.7759,1795.4,1795.0,6.12092587]
[1745867834797,0.7759,1795.4,1795.0,11.69176124]
[1745867835041,5.57015163,1795.3,1794.9,6.12123845]
[1745867836029,5.57015163,1795.3,1794.9,6.12111553]
[1745867836264,5.57015163,1795.3,1794.9,7.19031428]
[1745867837320,5.57015163,1795.3,1794.9,6.12111553]
[1745867837619,0.7926,1795.2,1795.1,0.55]
[1745867838696,0.7926,1795.2,1795.0,6.12096758]
[1745867839093,5.56670886,1796.4,1795.1,6.21268551]
[1745867839294,5.56742025,1796.2,1795.8,0.55]
[1745867839495,5.56742025,1796.2,1795.7,5.5686945]
[1745867839496,5.56742041,1796.2,1795.9,0.55]
[1745867839844,0.55667089,1796.3,1796.0,0.55]
[1745867840193,6.102,1796.4,1796.0,0.55]
[1745867840394,11.6686992,1796.4,1796.0,0.55]
[1745867841429,11.6686992,1796.4,1795.9,6.11805873]
[1745867841628,11.6686992,1796.4,1796.1,0.55]
[1745867841827,6.102,1796.4,1796.1,0.55]
[1745867842331,6.102,1796.4,1796.2,0.55]
[1745867842500,6.102,1796.4,1796.2,6.1172883]
[1745867842698,6.102,1796.4,1796.1,6.11742307]
[1745867843139,6.102,1796.4,1796.3,0.55]
[1745867845239,6.102,1796.4,1795.9,6.11795514]
[1745867845240,11.66883563,1796.4,1795.9,6.11795514]
[1745867845397,6.102,1796.4,1795.9,6.72974727]
[1745867845598,6.102,1796.4,1796.2,0.55]
[1745867846038,6.102,1796.4,1796.0,0.55]
[1745867846408,6.102,1796.4,1796.2,0.55]
[1745867847019,11.66874202,1796.4,1796.0,6.1177438]
[1745867847233,6.102,1796.4,1796.0,11.68547982]
[1745867847438,17.23572858,1796.4,1796.0,6.1177809]
[1745867847729,5.56717766,1796.3,1796.0,0.55]
[1745867848137,5.56741234,1796.2,1795.9,0.55]
[1745867848337,5.56741234,1796.2,1795.7,6.03]
[1745867848338,0.7577,1796.2,1795.7,6.03]
[1745867848535,0.7577,1796.2,1795.4,0.7865]
[1745867848742,5.56792161,1796.1,1795.7,5.56869371]
[1745867849116,5.56792161,1796.1,1795.8,0.55]
[1745867849315,5.56792161,1796.1,1795.7,5.56869371]
[1745867849643,5.56787717,1796.1,1795.6,11.13800081]
[1745867849840,5.56787717,1796.1,1795.8,0.55]
[1745867850552,0.7577,1796.2,1795.7,0.55]
[1745867850725,5.56795668,1796.0,1795.7,0.55]
[1745867850926,6.101,1795.9,1795.7,0.55]
[1745867851318,6.101,1795.9,1795.8,0.55]
[1745867851518,6.101,1795.9,1795.8,6.11854883]
[1745867851718,6.101,1795.9,1795.8,7.28727685]
[1745867852330,6.101,1795.9,1795.6,0.55]
[1745867852521,6.101,1795.9,1795.6,6.11913997]
[1745867852719,6.101,1795.9,1795.8,0.55]
[1745867853321,6.101,1795.9,1795.6,6.1189642]
[1745867854753,6.101,1795.9,1795.5,6.11927751]
[1745867855067,6.101,1795.9,1795.5,7.41285526]
[1745867855218,6.101,1795.9,1795.5,7.41284181]
[1745867855418,6.101,1795.9,1795.7,0.55]
[1745867855655,11.66926113,1795.9,1795.7,0.55]
[1745867856162,6.4009048,1795.8,1795.6,0.55]
[1745867856360,6.4009048,1795.8,1795.4,6.8165]
[1745867856520,6.4009048,1795.8,1795.4,6.03]
[1745867856521,5.56930371,1795.6,1795.4,6.03]
[1745867856729,5.56930371,1795.6,1795.2,0.7865]
[1745867856921,5.56954071,1795.5,1795.2,1.4222095]
[1745867857120,5.56930371,1795.6,1795.3,0.55]
[1745867857836,5.56900508,1795.7,1795.3,6.12006943]
[1745867857837,5.56894587,1795.7,1795.3,6.12006943]
[1745867858039,5.56894587,1795.7,1795.3,6.11991352]
[1745867858451,5.56931979,1795.6,1795.3,0.55]
[1745867859342,5.5691712,1795.6,1795.3,7.35265512]
[1745867859879,5.5691712,1795.6,1795.3,1.78261501]
[1745867860078,0.8322,1795.8,1795.3,0.55]
[1745867860244,6.32858946,1795.4,1795.0,12.38746965]
[1745867860444,6.101,1795.4,1795.3,6.1200997]
[1745867860966,6.101,1795.4,1795.3,0.55]
[1745867861278,6.101,1795.4,1795.3,6.1200997]
[1745867861449,0.8005,1796.0,1795.7,5.56879875]
[1745867861653,0.8005,1796.0,1795.8,0.55]
[1745867861654,6.083,1795.9,1795.8,0.55]
[1745867862879,6.083,1795.9,1795.7,0.55]
[1745867863046,6.083,1795.9,1795.7,6.1186454]
[1745867863247,6.083,1795.9,1795.7,6.73050994]
[1745867863985,16.716,1796.1,1795.9,6.11816936]
[1745867864288,16.716,1796.1,1795.9,0.55]
[1745867864456,16.716,1796.1,1795.8,6.11838741]
[1745867864862,16.716,1796.1,1795.8,11.68671186]
[1745867865081,16.716,1796.1,1796.0,0.55]
[1745867866246,6.082,1796.2,1796.0,0.55]
[1745867867056,6.082,1796.2,1796.0,6.11788197]
[1745867867363,6.082,1796.2,1796.0,0.55]
[1745867868459,6.082,1796.2,1796.0,6.11792165]
[1745867868669,6.082,1796.2,1795.9,6.11812186]
[1745867868931,6.082,1796.2,1795.9,0.55]
[1745867868932,11.64947399,1796.2,1795.9,0.55]
[1745867869247,5.56885894,1795.7,1795.3,2.49089387]
[1745867869595,5.56792873,1796.0,1795.5,5.56936403]
[1745867869772,5.56743989,1796.2,1795.9,0.55]
[1745867869976,11.64992873,1796.0,1795.9,0.55]
[1745867870285,6.082,1796.0,1795.9,0.55]
[1745867870647,11.65010269,1796.0,1795.7,0.55]
[1745867871784,5.56842496,1795.9,1795.5,5.56935896]
[1745867871954,6.082,1796.0,1795.6,0.55]
[1745867872152,5.56859893,1795.8,1795.4,0.7865]
[1745867872493,5.568374,1795.9,1795.5,5.56940196]
[1745867872675,5.568374,1795.9,1795.6,0.55]
[1745867873198,11.13689043,1795.9,1795.6,0.55]
[1745867873367,5.5685801,1795.8,1795.6,0.55]
[1745867873566,5.568374,1795.9,1795.6,0.55]
[1745867875099,11.65016109,1796.0,1795.6,1.16194334]
[1745867875390,11.65016109,1796.0,1795.6,12.30005431]
[1745867875588,11.65016109,1796.0,1795.6,6.73089791]
[1745867877288,6.082,1796.0,1795.8,6.1185459]
[1745867877493,6.082,1796.0,1795.8,6.9050459]
[1745867877693,6.082,1796.0,1795.8,8.15241673]
[1745867878059,6.082,1796.0,1795.8,2.58387083]
[1745867878267,6.082,1796.0,1795.8,1.79737083]
[1745867878466,6.082,1796.0,1795.8,0.55]
[1745867879375,1.2225339,1796.8,1796.6,0.55]
[1745867879769,0.4161339,1796.8,1796.5,5.56610884]
[1745867879994,0.4161339,1796.8,1796.6,0.55]
[1745867880368,5.98161667,1796.8,1796.4,5.56645128]
[1745867880564,0.4161339,1796.8,1796.6,0.55]
[1745867882416,0.4161339,1796.8,1796.7,6.11575944]
[1745867882785,0.4161339,1796.8,1796.4,7.4921558]
[1745867882984,5.9817064,1796.8,1796.5,0.55]
[1745867883511,0.4161339,1796.8,1796.6,5.56594463]
[1745867883714,0.4161339,1796.8,1796.6,1.16821681]
[1745867883880,0.4161339,1796.8,1796.5,6.11618404]
[1745867884209,0.4161339,1796.8,1796.5,0.55]
[1745867884814,0.4161339,1796.8,1796.5,6.11634509]
[1745867885377,5.98170829,1796.8,1796.5,0.55]
[1745867885715,5.56589714,1796.7,1796.3,6.11694978]
[1745867885894,5.56618514,1796.6,1796.3,0.72840133]
[1745867888520,5.56585663,1796.7,1796.5,0.55]
[1745867888821,5.98179069,1796.8,1796.5,0.55]
[1745867889017,11.54754966,1796.8,1796.5,0.55]
[1745867889222,5.98179069,1796.8,1796.5,0.55]
[1745867889621,0.4161339,1796.8,1796.5,6.11634272]
[1745867889793,5.98158793,1796.8,1796.5,0.55]
[1745867889994,0.4161339,1796.8,1796.5,0.55]
[1745867890209,0.4161339,1796.8,1796.6,5.56584785]
[1745867890418,0.4161339,1796.8,1796.7,5.56575944]
[1745867891324,0.4161339,1796.8,1796.6,6.32224785]
[1745867892728,0.4161339,1796.8,1796.7,5.56575944]
[1745867893096,0.4161339,1796.8,1796.2,5.44448551]
[1745867893097,5.56650145,1796.5,1796.2,0.7865]
[1745867893302,5.56620757,1796.6,1796.2,6.35373046]
[1745867893610,5.56595284,1796.7,1796.3,6.11694044]
[1745867894326,5.56610083,1796.6,1796.3,0.55]
[1745867895219,5.56591486,1796.7,1796.3,0.55]
[1745867895426,1.2488339,1796.8,1796.3,0.55]
[1745867895720,0.4161339,1796.8,1796.7,6.11575944]
[1745867895921,0.4161339,1796.8,1796.7,0.55]
[1745867896689,1.1699339,1796.8,1796.7,0.55]
[1745867897286,5.5660447,1796.7,1796.3,6.1167922]
[1745867897594,6.06,1796.6,1796.4,0.61167922]
[1745867897793,6.06,1796.6,1796.4,0.55]
[1745867899531,0.777,1796.4,1795.7,1.19740511]
[1745867899741,5.56774763,1796.1,1795.7,0.7865]
[1745867899923,5.56842726,1795.9,1795.5,6.77410331]
[1745867900118,6.34493442,1796.0,1795.6,0.67741033]
[1745867900437,6.06,1796.1,1795.6,0.67741033]
[1745867900639,6.06,1796.1,1795.8,5.56841131]
[1745867900793,6.06,1796.1,1795.9,0.55]
[1745867901125,6.06,1796.1,1795.9,6.11822326]
[1745867901353,6.06,1796.1,1795.9,0.55]
[1745867901499,6.06,1796.1,1795.8,0.55]
[1745867901827,6.06,1796.1,1795.9,0.55]
[1745867902325,6.06,1796.1,1795.9,6.11819804]
[1745867902826,6.06,1796.1,1795.9,0.55]
[1745867903520,6.06,1796.1,1795.9,6.11812739]
[1745867904125,6.06,1796.1,1795.9,0.55]
[1745867904924,6.06,1796.1,1795.9,6.11810928]
[1745867905329,6.06,1796.1,1795.9,6.11801639]
[1745867905922,6.06,1796.1,1795.9,0.55]
[1745867906131,6.06,1796.1,1795.9,6.11822929]
[1745867906900,6.06,1796.1,1796.0,5.56792873]
[1745867907095,0.7707,1795.6,1794.5,0.7865]
[1745867907326,3.7707,1795.4,1794.5,0.7865]
[1745867907542,2.37965054,1795.4,1794.8,0.2898912]
[1745867907748,5.57014403,1795.3,1794.9,0.7712]
[1745867908392,0.7707,1795.4,1794.9,6.34234143]
[1745867908629,6.061,1795.3,1795.1,5.57055447]
[1745867908934,6.061,1795.3,1795.0,6.12088357]
[1745867909128,6.061,1795.3,1795.0,6.12082308]
[1745867909439,6.062,1795.7,1795.3,5.56991843]
[1745867909600,6.062,1795.7,1795.3,0.7788]
[1745867909931,6.062,1795.7,1795.4,6.1197746]
[1745867910512,6.062,1795.7,1795.4,6.1195718]
[1745867910718,6.062,1795.7,1795.4,6.80940898]
[1745867911614,11.63035955,1795.9,1795.5,5.56940965]
[1745867911843,17.19885467,1795.9,1795.4,6.80940085]
[1745867912133,0.63967976,1795.9,1795.4,1.23983718]
[1745867912302,5.56873064,1795.8,1795.4,6.80950738]
[1745867912500,0.63967976,1795.9,1795.6,0.55]
[1745867912735,5.56856985,1795.8,1795.6,0.55]
[1745867912931,6.20802843,1795.9,1795.6,0.55]
[1745867913132,5.5685552,1795.8,1795.6,0.55]
[1745867913343,6.20804283,1795.9,1795.6,0.55]
[1745867913646,0.63967976,1795.9,1795.5,6.1191853]
[1745867913808,0.63967976,1795.9,1795.6,0.61191853]
[1745867914222,6.20794493,1795.9,1795.6,0.61191853]
[1745867914430,0.63967976,1795.9,1795.6,6.18107028]
[1745867914647,0.63967976,1795.9,1795.6,0.61191853]
[1745867914818,6.20795313,1795.9,1795.6,0.61191853]
[1745867915329,6.20795313,1795.9,1795.5,6.11943567]
[1745867916743,6.20795313,1795.9,1795.4,6.11959278]
[1745867916916,5.56871221,1795.8,1795.4,6.11959278]
[1745867917237,5.5694685,1795.6,1795.2,5.57028432]
[1745867917608,5.56900263,1795.7,1795.3,0.55]
[1745867917831,11.13811663,1795.7,1795.3,6.18207406]
[1745867918062,11.13811663,1795.7,1795.4,0.55]
[1745867918562,5.56900263,1795.7,1795.4,0.55]
[1745867918758,11.1381418,1795.7,1795.4,0.55]
[1745867919263,5.56918922,1795.6,1795.4,0.55]
[1745867920982,5.56901141,1795.7,1795.4,0.55]
[1745867921662,5.56901141,1795.7,1795.4,1.22320275]
[1745867922664,5.56917142,1795.6,1795.4,1.22320275]
[1745867922831,5.56917142,1795.6,1795.4,0.55]
[1745867923024,5.57036987,1795.3,1795.1,0.61208231]
[1745867923261,5.57057449,1795.2,1795.0,0.7515]
[1745867923570,5.57119289,1795.0,1794.8,0.771]
[1745867923767,5.57119289,1795.0,1794.6,5.5721081]
[1745867923768,5.57119289,1795.0,1794.6,5.57205503]
[1745867924066,5.57083928,1795.1,1794.7,5.57174809]
[1745867924262,5.57083928,1795.1,1794.8,0.55717481]
[1745867924449,5.57084845,1795.1,1794.7,5.57190502]
[1745867925439,0.7855,1795.2,1794.9,6.12133784]
[1745867925637,0.7855,1795.2,1794.9,11.69246179]
[1745867925968,5.57011014,1795.3,1794.9,6.1211884]
[1745867926159,5.57011014,1795.3,1794.9,7.36910399]
[1745867926535,12.3974582,1795.4,1794.9,1.79791559]
[1745867926834,12.3974582,1795.4,1795.0,5.57096402]
[1745867927034,12.3974582,1795.4,1794.9,6.12131547]
[1745867927035,5.57016823,1795.3,1794.9,6.12131547]
[1745867927472,11.14050448,1795.3,1794.9,6.12131547]
[1745867927637,11.14052365,1795.3,1794.9,6.12131547]
[1745867927831,5.57016823,1795.3,1794.9,6.12131547]
[1745867928161,11.14054835,1795.3,1794.9,6.12131547]
[1745867928356,5.57016823,1795.3,1794.9,6.12131547]
[1745867928561,5.57016823,1795.3,1794.9,12.94036192]
[1745867928967,5.57016823,1795.3,1794.9,7.36904645]
[1745867929272,5.57016823,1795.3,1795.0,5.57100765]
[1745867929456,12.39750603,1795.4,1794.9,1.79793377]
[1745867929768,5.5701643,1795.3,1794.9,6.121092]
[1745867929970,6.8275,1795.4,1795.2,0.55]
[1745867930179,6.044,1795.4,1795.3,5.5700997]
[1745867930395,6.3731332,1795.9,1795.6,0.55]
[1745867930689,6.046,1795.9,1795.8,6.11854883]
[1745867931497,6.046,1795.9,1795.7,6.11865146]
[1745867931664,6.046,1795.9,1795.7,6.11872681]
[1745867931862,6.046,1795.9,1795.7,0.55]
[1745867932273,6.046,1795.9,1795.7,6.11868365]
[1745867932450,6.046,1795.9,1795.8,6.1804172]
[1745867932947,6.046,1795.9,1795.8,0.61186837]
[1745867933582,6.046,1795.9,1795.8,6.7304172]
[1745867933883,28.32718982,1796.3,1795.9,6.11822193]
[1745867934043,22.76,1796.3,1796.1,0.55]
[1745867934683,28.32702309,1796.3,1796.1,0.55]
[1745867934866,28.32702309,1796.3,1795.6,6.93623039]
[1745867934867,5.5680333,1796.0,1795.6,9.93619566]
[1745867935067,5.56779415,1796.1,1795.7,0.55]
[1745867935269,5.56805056,1796.0,1795.7,0.55]
[1745867935471,6.33265056,1796.0,1795.7,0.55]
[1745867935871,0.7646,1796.0,1795.7,0.55]
[1745867936076,0.7646,1796.0,1795.7,6.1186744]
[1745867936909,6.33257259,1796.0,1795.7,0.55]
[1745867937116,0.7646,1796.0,1795.7,6.11877277]
[1745867937710,6.33267853,1796.0,1795.7,0.55]
[1745867937910,5.56834341,1795.9,1795.6,0.55]
[1745867938508,5.56834341,1795.9,1795.5,5.56927902]
[1745867938718,5.56865326,1795.8,1795.4,12.38611146]
[1745867938879,5.56865326,1795.8,1795.4,6.03]
[1745867938880,11.61366623,1795.8,1795.4,6.03]
[1745867939080,5.56916907,1795.6,1795.5,0.55]
[1745867939394,5.56916907,1795.6,1795.2,6.35669049]
[1745867939898,5.56916907,1795.6,1795.2,5.57019049]
[1745867940085,5.56916907,1795.6,1795.3,0.55]
[1745867940299,6.3630806,1795.7,1795.0,3.7723]
[1745867940521,5.56920843,1795.6,1795.2,5.57040453]
[1745867941018,6.36305538,1795.7,1795.4,0.55]
[1745867942222,6.36314478,1795.7,1795.2,9.12020447]
[1745867942381,6.36314478,1795.7,1795.2,8.57020447]
[1745867942582,5.56928106,1795.6,1795.3,0.55]
[1745867943091,5.56928106,1795.6,1795.3,6.12009138]
[1745867943398,5.56928106,1795.6,1795.2,9.12026418]
[1745867943598,5.56928106,1795.6,1795.2,10.62706816]
[1745867943827,5.56967609,1795.5,1795.2,2.05680398]
[1745867944133,5.56928106,1795.6,1795.2,6.12030723]
[1745867945439,5.56928106,1795.6,1795.2,6.12023577]
[1745867945640,6.36311685,1795.7,1795.4,0.55]
[1745867945942,5.56916918,1795.6,1795.4,0.55]
[1745867946639,11.13861643,1795.6,1795.2,6.12020497]
[1745867946942,5.56951981,1795.5,1795.2,6.12036341]
[1745867947144,5.56934444,1795.6,1795.2,6.12036341]
[1745867947306,5.56955,1795.5,1795.2,0.55]
[1745867947708,0.7816,1795.3,1794.6,0.28989921]
[1745867947907,5.57227237,1794.6,1794.5,0.29098012]
[1745867948210,6.045,1794.7,1794.2,6.3416588]
[1745867948427,6.045,1794.7,1794.4,5.57261907]
[1745867948647,0.8201,1796.3,1795.5,3.7577]
[1745867948808,0.8201,1796.3,1796.0,6.11791597]
[1745867949212,0.8201,1796.3,1796.0,0.55]
[1745867949910,6.045,1796.4,1796.0,6.11774921]
[1745867950106,0.8201,1796.5,1796.3,0.55]
[1745867950309,6.045,1796.6,1796.3,0.55]
[1745867950549,6.045,1796.6,1796.3,6.11698274]
[1745867951052,6.045,1796.6,1796.3,0.55]
[1745867951711,6.045,1796.6,1796.4,0.55]
[1745867952747,6.045,1796.6,1795.9,6.3259243]
[1745867952918,6.045,1796.6,1796.4,0.55]
[1745867953650,6.045,1796.6,1796.2,6.11709566]
[1745867953849,6.045,1796.6,1796.2,6.11708305]
[1745867954013,6.045,1796.6,1796.4,0.55]
[1745867954647,6.045,1796.6,1796.4,6.11662033]
[1745867955223,6.045,1796.6,1796.4,6.11667127]
[1745867955438,6.045,1796.6,1796.5,6.11637907]
[1745867955644,6.045,1796.6,1796.5,0.55]
[1745867956866,6.045,1796.6,1796.5,6.11637907]
[1745867957070,0.8198,1798.0,1797.1,0.7593]
[1745867957367,0.7909,1798.2,1797.8,6.11235398]
[1745867958063,6.025,1798.7,1797.8,7.35578434]
[1745867958238,0.7909,1798.5,1797.8,7.35578434]
[1745867958446,6.35125219,1798.5,1797.8,7.35578434]
[1745867958769,6.025,1798.4,1797.8,7.35578434]
[1745867958966,11.58567427,1798.4,1797.8,6.11235398]
[1745867959346,6.025,1798.4,1797.8,6.11235398]
[1745867959547,11.58549954,1798.4,1797.8,6.11235398]
[1745867959958,6.025,1798.4,1797.8,6.11235398]
[1745867960468,11.58552685,1798.4,1797.8,6.11235398]
[1745867960673,11.58568271,1798.4,1797.8,6.11235398]
[1745867961076,5.56084822,1798.3,1797.8,6.19137924]
[1745867961277,0.4161339,1798.6,1798.4,0.55]
[1745867961463,0.4161339,1798.6,1798.5,0.55]
[1745867961632,5.56038567,1798.5,1798.1,0.55]
[1745867961970,6.15803763,1798.5,1798.1,0.55]
[1745867962170,0.59765196,1798.5,1798.0,0.55]
[1745867962370,0.4161339,1798.6,1798.4,0.55]
[1745867962668,5.56054739,1798.4,1798.0,5.56155072]
[1745867962872,6.33824739,1798.4,1798.1,0.55]
[1745867963082,6.33824739,1798.4,1798.0,5.56155072]
[1745867963083,5.56080742,1798.3,1797.8,0.55]
[1745867963254,5.56080742,1798.3,1798.0,0.55]
[1745867963255,6.19465816,1798.3,1798.0,0.55]
[1745867963841,5.56111695,1798.2,1797.8,0.55]
[1745867964073,11.58311695,1798.2,1797.8,0.55]
[1745867964571,0.63385074,1798.3,1797.9,0.07902086]
[1745867964782,0.4161339,1798.6,1798.5,9.89668904]
[1745867964945,1e-08,1798.9,1798.8,15.34024724]
[1745867965282,0.05,1799.9,1799.6,0.55]
[1745867965642,11.62802176,1799.9,1799.7,0.07292122]
[1745867965838,5.60602176,1799.9,1799.7,0.07292122]
[1745867966089,11.5781729,1799.8,1799.7,0.07292122]
[1745867966381,13.29659237,1799.8,1799.7,0.07292122]
[1745867966569,5.55668719,1799.7,1799.4,0.61823675]
[1745867966967,0.13229568,1799.6,1799.5,0.06942404]
[1745867967173,13.29378656,1799.8,1799.5,0.06942404]
[1745867967356,0.132634,1799.7,1799.6,0.55]
[1745867967694,0.132634,1799.7,1799.1,5.5583283]
[1745867967695,0.132634,1799.7,1799.2,0.55]
[1745867967982,5.55732375,1799.5,1799.2,0.55]
[1745867968350,0.10681814,1799.4,1799.2,0.55]
[1745867968552,5.55666347,1799.7,1799.2,6.10790124]
[1745867968876,0.10813822,1799.6,1799.2,0.55]
[1745867969056,5.66505864,1799.6,1799.2,6.1080145]
[1745867969260,5.55664253,1799.7,1799.4,0.55]
[1745867969454,0.1077999,1799.5,1799.4,6.10740802]
[1745867969788,0.10622453,1799.5,1799.4,6.10740802]
[1745867969959,0.4161339,1800.4,1800.1,0.55]
[1745867970140,0.4161339,1800.4,1800.3,0.55]
[1745867970341,0.4161339,1800.4,1800.0,5.5555382]
[1745867970545,6.56760977,1800.4,1800.1,0.55]
[1745867970780,5.55475345,1800.3,1800.1,0.55]
[1745867970946,5.55477311,1800.3,1799.9,0.55]
[1745867971285,5.55508554,1800.2,1799.8,6.10614821]
[1745867971578,5.55482671,1800.3,1799.9,5.5558623]
[1745867971883,0.55548267,1800.2,1800.0,0.55]
[1745867972178,6.57148267,1800.2,1800.0,0.55]
[1745867972546,12.12644736,1800.2,1799.8,0.55]
[1745867973280,5.55525748,1800.1,1799.8,0.55]
[1745867973581,0.4161339,1800.4,1800.3,6.88202978]
[1745867973885,0.4161339,1800.4,1800.3,1.3274]
[1745867974075,0.4161339,1800.4,1800.3,6.88202978]
[1745867974381,0.4161339,1800.4,1800.3,1.3274]
[1745867974604,5.97045516,1800.4,1800.3,1.3274]
[1745867974745,1.56858924,1800.4,1800.2,0.55]
[1745867974942,0.4161339,1800.4,1800.2,0.55]
[1745867975142,0.4161339,1800.4,1800.0,0.7774]